fUST/lending_fUST_20240214
["ID","MTS","AMOUNT","RATE_DAILY","PERIOD"]
[313964955,1707873032411,-1398.91849128,0.00034509,4]
[313964957,1707873032424,-5000.0,0.0003451,7]
[313964960,1707873032433,-5000.0,0.00034526,7]
[313964963,1707873032442,-8189.8295,0.00034594,7]
[313964966,1707873032452,-500.13137461,0.00035,7]
[313964968,1707873032461,-3933.83541145,0.00035,2]
[313964971,1707873032470,-10188.56654547,0.00035,2]
[313964974,1707873032480,-1533.16044773,0.00035,4]
[313964977,1707873032489,-155.0,0.00035,2]
[313964981,1707873032501,-620.06101284,0.00035357,2]
[313964984,1707873032510,-1025.86513041,0.00035609,10]
[313964986,1707873032520,-500.0,0.00035616,2]
[313964989,1707873032529,-6418.08768926,0.000357,30]
[313964992,1707873032539,-153.0,0.00035753,2]
[313964995,1707873032548,-200.1465056,0.00035753,2]
[313964998,1707873032558,-153.0,0.00035753,2]
[313965001,1707873032567,-153.0,0.00035753,2]
[313965004,1707873032576,-153.0,0.00035753,2]
[313965007,1707873032586,-200.1465056,0.00035753,2]
[313965010,1707873032598,-199.742276,0.00035753,2]
[313965013,1707873032608,-245.0436255,0.00035753,2]
[313965016,1707873032617,-153.0,0.00035753,2]
[313965019,1707873032626,-161.53616685,0.00035756,2]
[313965021,1707873032636,-158.8308104,0.00035841,2]
[313965023,1707873032645,-926.0,0.0003589,2]
[313965026,1707873032656,-330.4574416,0.0003589,2]
[313965028,1707873032666,-153.0,0.0003589,2]
[313965030,1707873032675,-202.0927635,0.0003589,2]
[313965032,1707873032685,-200.1465056,0.0003589,2]
[313965034,1707873032694,-153.0,0.0003589,2]
[313965035,1707873032703,-306.0,0.0003589,2]
[313965037,1707873032713,-153.0,0.0003589,2]
[313965039,1707873032723,-153.0,0.0003589,2]
[313965041,1707873032732,-200.1465056,0.0003589,2]
[313965043,1707873032743,-153.0,0.0003589,2]
[313965045,1707873032752,-780.75,0.0003597,3]
[313965047,1707873032763,-875.48,0.0003597,3]
[313965049,1707873032772,-1073.1,0.0003597,3]
[313965051,1707873032782,-894.25,0.0003597,3]
[313965053,1707873032792,-1476.41946913,0.0003598,14]
[313965080,1707873038421,-4314.46916772,0.0003598,14]
[313965082,1707873038433,-1118.0799935,0.0003598,14]
[313965084,1707873038445,-2272.01270733,0.0003598,14]
[313965321,1707873041552,-1225.91420147,0.0003598,14]
[313965322,1707873041565,-22656.05701122,0.0003598,14]
[313965323,1707873041608,-13089.66583617,0.0003598,14]
[313965356,1707873043451,-622.93575481,0.0003598,14]
[313965357,1707873043463,-1120.61670504,0.0003598,14]
[313965386,1707873046385,-161.53616685,0.000359,2]
[313965389,1707873046394,-1056.39863939,0.0003598,14]
[313965391,1707873046404,-745.21,0.0003599,3]
[313965393,1707873046414,-4032.79875105,0.00036,26]
[313965395,1707873046430,-2093.14398286,0.00036,26]
[313965439,1707874165102,-996.867854,0.0002326,2]
[313965440,1707874165122,-500.0,0.0002326,2]
[313965441,1707874165144,-3000.0,0.00023261,2]
[313965442,1707874165164,-154.78330338,0.00023593,2]
[313965443,1707874165183,-154.78330338,0.00023593,2]
[313965444,1707874165203,-1588.23318982,0.00023593,2]
[313965445,1707874165223,-324.33055598,0.00023594,2]
[313965446,1707874165242,-296.0451629,0.00023595,2]
[313965447,1707874165260,-1041.19504851,0.00023595,2]
[313965448,1707874165279,-681.54066331,0.00023596,2]
[313965449,1707874165299,-154.78330338,0.00023596,2]
[313965450,1707874165418,-181.70308588,0.00023596,2]
[313965451,1707874165444,-641.04413106,0.00023597,2]
[313965452,1707874165463,-1963.02059646,0.00023597,2]
[313965453,1707874165482,-907.14192831,0.00023597,2]
[313965454,1707874165501,-292.200685,0.00023622,2]
[313965455,1707874165520,-3180.8786292,0.00024213,2]
[313965456,1707874165540,-5831.16071963,0.00024435,2]
[313965457,1707874167092,-4584.01725957,0.00024435,2]
[313965458,1707874167114,-2719.63229163,0.00024925,2]
[313965459,1707874167137,-504.10456481,0.00024929,2]
[313965460,1707874167157,-500.62496718,0.0002498,5]
[313965461,1707874167177,-215.60591,0.00025258,2]
[313965462,1707874167198,-200.0,0.00025981,7]
[313965463,1707874167219,-6305.94327902,0.00027711,2]
[313965464,1707874167241,-19651.68853847,0.00027712,2]
[313965539,1707874232609,-8440.91121211,0.00027712,2]
[313965541,1707874232619,-2376.97153879,0.00027712,2]
[313965543,1707874232632,-2188.92825699,0.00027712,7]
[313965545,1707874232641,-280.0,0.00028579,15]
[313965547,1707874232651,-352.47170426,0.000295,30]
[313965549,1707874232660,-391.0,0.00031437,15]
[313965550,1707874232670,-2092.20651111,0.00032,4]
[313965551,1707874232679,-300.0,0.00032,4]
[313965553,1707874232693,-11476.3336076,0.00032589,2]
[313965555,1707874232702,-661.17234138,0.00033038,4]
[313965557,1707874232711,-210.2422997,0.00033039,7]
[313965559,1707874232721,-643.12409111,0.00033608,2]
[313965560,1707874232730,-1444.54670097,0.0003388,2]
[313965562,1707874232739,-906.17836245,0.00034405,3]
[313965564,1707874232806,-394.41643947,0.00034405,3]
[313965584,1707874238705,-2787.14519808,0.00034405,3]
[313965585,1707874238714,-32821.91858351,0.00034415,4]
[313965586,1707874238817,-3273.91327912,0.00034415,4]
[313965587,1707874238829,-13795.00578591,0.00034415,4]
[313965588,1707874238838,-177.7050752,0.00034725,2]
[313965589,1707874238848,-1339.3618,0.00034874,4]
[313965590,1707874238859,-503.8208604,0.00034875,5]
[313965591,1707874238870,-153.0,0.00035068,2]
[313965592,1707874238880,-153.0,0.00035068,2]
[313965593,1707874238890,-153.0,0.00035178,2]
[313965594,1707874238902,-162.7907687,0.00035178,2]
[313965595,1707874238911,-5152.72125856,0.00035204,4]
[313965596,1707874238925,-1203.63242655,0.00035204,4]
[313965622,1707874241917,-861.4273352,0.00034724,4]
[313965623,1707874241929,-2117.88866112,0.00035204,4]
[313965624,1707874241938,-153.0,0.00035205,2]
[313965625,1707874241948,-153.0,0.00035205,2]
[313965626,1707874241957,-88.14363907,0.00035205,2]
[313965627,1707874241969,-218.42716673,0.00035205,2]
[313965628,1707874241978,-621.15620456,0.00035288,2]
[313965629,1707874241987,-153.0,0.00035378,2]
[313965630,1707874241996,-153.0,0.00035378,2]
[313965631,1707874242006,-307.522737,0.00035378,2]
[313965632,1707874242015,-153.0,0.00035378,2]
[313965633,1707874242025,-200.1465056,0.00035378,2]
[313965634,1707874242034,-380.60267788,0.000355,14]
[313965635,1707874242045,-500.0,0.00035616,2]
[313965636,1707874242055,-676.16657564,0.0003589,2]
[313965637,1707874242069,-233.83342436,0.0003589,2]
[313965638,1707874242078,-200.1465056,0.0003589,2]
[313965639,1707874242087,-200.1465056,0.0003589,2]
[313965640,1707874242097,-399.484552,0.0003589,2]
[313965641,1707874242106,-153.0,0.0003589,2]
[313965642,1707874242115,-153.0,0.0003589,2]
[313965643,1707874242124,-158.76627118,0.000359,2]
[313965644,1707874242133,-1276.2070171,0.00035989,2]
[313965645,1707874242143,-3406.45,0.0003599,3]
[313965646,1707874242152,-310.29298363,0.00035998,4]
[313965647,1707874242162,-1349.91934877,0.00035998,4]
[313965648,1707874242171,-259.43039326,0.00035999,2]
[313965649,1707874242181,-162.62898508,0.00035999,15]
[313965650,1707874242191,-323.24052707,0.00036,2]
[313965651,1707874242200,-16778.79356158,0.00036,26]
[313965652,1707874242213,-5699.33136642,0.00036,26]
[313965669,1707874243642,-154.78330338,0.00027712,2]
[313965670,1707874243651,-158.68201791,0.00036,26]
[313965671,1707874243663,-6449.33104981,0.00036,26]
[313965672,1707874243722,-1415.23189161,0.00036,26]
[313965674,1707874243734,-978.34633277,0.00036,26]
[313965675,1707874243745,-800.84915085,0.00036,26]
[313965701,1707874246607,-759.04666714,0.00035999,4]
[313965704,1707874246619,-640.0810053,0.00035999,4]
[313965705,1707874246628,-21706.65068729,0.00036,26]
[313965706,1707874246639,-1008.11866096,0.00036,45]
[313965707,1707874246649,-2000.0,0.00036,7]
[313965708,1707874246658,-7596.37753682,0.00036,4]
[313965709,1707874246672,-2728.13142589,0.00036,4]
[313965710,1707874246682,-154.90705577,0.00036,2]
[313965711,1707874246690,-910.0,0.00036,2]
[313965712,1707874246700,-910.0,0.00036164,2]
[313965713,1707874246710,-47429.9462293,0.00036202,2]
[313965714,1707874246853,-19833.4907395,0.00036202,2]
[313965715,1707874246862,-12849.60357793,0.00036202,2]
[313965716,1707874246871,-151.0,0.00036202,2]
[313965717,1707874246881,-151.0,0.00036202,2]
[313965718,1707874246891,-151.0,0.00036202,2]
[313965719,1707874246900,-200.0,0.000363,4]
[313965720,1707874246910,-910.0,0.00036438,2]
[313965721,1707874246920,-25799.07593549,0.000365,2]
[313965722,1707874246930,-2500.0,0.000365,14]
[313965723,1707874246939,-579.0,0.000365,2]
[313965724,1707874246949,-155.11619598,0.00036526,4]
[313965725,1707874246959,-151.0,0.00036612,2]
[313965726,1707874246969,-151.0,0.00036612,2]
[313965727,1707874246979,-252.716461,0.00036612,2]
[313965728,1707874246989,-158.76627117,0.00036612,2]
[313965729,1707874247000,-7227.82074325,0.00036612,3]
[313965736,1707875346096,-6116.12311429,0.00022288,2]
[313965737,1707875346119,-2721.57664766,0.00022289,5]
[313965738,1707875346141,-1041.35073906,0.00022289,2]
[313965739,1707875346166,-154.79876161,0.0002229,4]
[313965740,1707875346189,-981.78336879,0.0002229,2]
[313965741,1707875346210,-154.79876161,0.0002229,2]
[313965742,1707875346231,-1203.17701718,0.00022291,2]
[313965743,1707875346255,-5293.34547532,0.00022292,2]
[313965744,1707875348116,-1588.46625264,0.00022288,2]
[313965745,1707875348142,-996.867854,0.00022288,2]
[313965746,1707875348165,-15661.14135339,0.00022292,2]
[313965747,1707875348192,-5283.69682262,0.00022293,2]
[313965748,1707875348216,-17212.7063358,0.00022303,2]
[313965749,1707875348239,-6259.04,0.00022928,3]
[313965750,1707875348388,-270.8890257,0.00022938,2]
[313965751,1707875348415,-4148.61553853,0.00022938,2]
[313965789,1707875431666,-156.9398973,0.00023816,2]
[313965791,1707875431676,-220.38251688,0.0002399,2]
[313965793,1707875431687,-532.01541265,0.0002399,2]
[313965795,1707875431731,-8025.05459267,0.0002399,2]
[313965798,1707875431743,-170.35041328,0.00024823,2]
[313965800,1707875431753,-3919.2333571,0.00024928,2]
[313965802,1707875431763,-34929.02695435,0.00024929,2]
[313965804,1707875431772,-6307.25751769,0.00025,2]
[313965806,1707875431782,-200.0,0.00025208,7]
[313965808,1707875431792,-160.09752623,0.00027656,2]
[313965810,1707875431802,-291.7541287,0.00027712,2]
[313965812,1707875431812,-280.0,0.00027729,15]
[313965814,1707875431821,-5215.87,0.00027745,3]
[313965816,1707875431831,-500.0,0.00027755,2]
[313965818,1707875431841,-500.0,0.00027755,2]
[313965820,1707875431851,-500.0,0.00027755,2]
[313965822,1707875431860,-500.0,0.00027755,2]
[313965824,1707875431869,-500.0,0.00027755,2]
[313965826,1707875431879,-500.0,0.00027755,2]
[313965828,1707875431889,-500.0,0.00027755,2]
[313965829,1707875431898,-500.0,0.00027755,2]
[313965830,1707875431910,-509.85318561,0.00027755,2]
[313965831,1707875431919,-500.0,0.00027755,2]
[313965832,1707875431929,-500.0,0.00027755,2]
[313965833,1707875431939,-500.0,0.00027755,2]
[313965834,1707875431948,-500.0,0.00027755,2]
[313965835,1707875431958,-500.0,0.00027755,2]
[313965836,1707875431967,-500.0,0.00027755,2]
[313965837,1707875431976,-292.93810045,0.00027755,2]
[313965838,1707875431986,-500.0,0.00027755,2]
[313965839,1707875431995,-500.0,0.00027755,2]
[313965840,1707875432005,-500.0,0.00027755,2]
[313965841,1707875432014,-500.0,0.00027755,2]
[313965842,1707875432023,-500.0,0.00027755,2]
[313965843,1707875432032,-500.0,0.00027755,2]
[313965844,1707875432041,-500.0,0.00027755,2]
[313965845,1707875432051,-500.0,0.00027755,2]
[313965846,1707875432061,-238.54389006,0.00027755,2]
[313965847,1707875432069,-500.0,0.00027755,2]
[313965848,1707875432079,-500.0,0.00027755,2]
[313965849,1707875432088,-500.0,0.00027755,2]
[313965850,1707875432097,-500.0,0.00027755,2]
[313965851,1707875432108,-500.0,0.00027755,2]
[313965852,1707875432121,-634.26735249,0.00027755,2]
[313965853,1707875432130,-500.0,0.00027755,2]
[313965854,1707875432139,-500.0,0.00027755,2]
[313965855,1707875432148,-500.0,0.00027755,2]
[313965856,1707875432158,-250.40587552,0.00027755,2]
[313965857,1707875432167,-500.0,0.00027755,2]
[313965858,1707875432177,-500.0,0.00027755,2]
[313965859,1707875432186,-500.0,0.00027755,2]
[313965860,1707875432196,-500.0,0.00027755,2]
[313965861,1707875432207,-499.20217441,0.00027755,2]
[313965862,1707875432217,-500.0,0.00027755,2]
[313965863,1707875432226,-407.02863291,0.00027755,2]
[313965864,1707875432236,-311.92930952,0.00027755,2]
[313965865,1707875432246,-500.0,0.00027755,2]
[313965866,1707875432255,-24932.5474514,0.00027756,2]
[313965903,1707875437961,-1549.34300603,0.00027756,2]
[313965905,1707875437971,-7834.94639058,0.00027756,2]
[313965907,1707875437981,-3944.5389339,0.00027756,2]
[313965909,1707875437990,-755.25776117,0.00027778,2]
[313965911,1707875438000,-391.0,0.00030502,15]
[313965913,1707875438009,-169.057576,0.00031087,2]
[313965914,1707875438019,-250.0,0.00032999,2]
[313965916,1707875438030,-31243.0,0.00033,7]
[313965917,1707875438040,-459.36303917,0.00033037,7]
[313965918,1707875438050,-250.04509728,0.00033037,7]
[313965919,1707875438061,-333.24468605,0.00033037,7]
[313965920,1707875438070,-312.43658995,0.00033037,7]
[313965921,1707875438081,-323.00318143,0.00033037,7]
[313965922,1707875438092,-470.94932112,0.00033037,7]
[313965923,1707875438103,-8009.49458892,0.00033038,2]
[313965924,1707875438114,-1118.24388278,0.00033039,2]
[313965925,1707875438124,-154.79876161,0.00033039,5]
[313965926,1707875438140,-504.72482422,0.00033039,2]
[313965927,1707875438151,-200.0,0.00033552,15]
[313965928,1707875438161,-348.0,0.00033552,15]
[313965929,1707875438172,-500.0,0.00033684,2]
[313965930,1707875438182,-1494.93049674,0.00033702,10]
[313965931,1707875438192,-623.90512896,0.0003385,2]
[313965932,1707875438202,-750.0,0.00034369,2]
[313965933,1707875438212,-1117.51815023,0.000344,2]
[313965934,1707875438222,-1399.12767244,0.0003456,4]
[313965935,1707875438233,-1339.3618,0.0003456,4]
[313965936,1707875438243,-5000.0,0.00034561,7]
[313965937,1707875438253,-5000.0,0.00034561,7]
[313965938,1707875438263,-5000.0,0.00034561,7]
[313965939,1707875438273,-151.0,0.000348,2]
[313965940,1707875438284,-254.631568,0.000348,2]
[313965941,1707875438293,-151.0,0.00034806,2]
[313965942,1707875438303,-151.0,0.00034806,2]
[313965943,1707875438313,-151.0,0.00034806,2]
[313965944,1707875438324,-151.0,0.00034806,2]
[313965945,1707875438335,-754.204049,0.00034806,2]
[313965946,1707875438344,-754.204049,0.00034806,2]
[313965947,1707875438355,-101628.7698,0.00034806,7]
[313965948,1707875438364,-250.0,0.00035054,2]
[313965949,1707875438374,-787.69042223,0.00035204,30]
[313965950,1707875438384,-200.0,0.00035204,2]
[313965951,1707875438394,-214.91870801,0.00035204,2]
[313965952,1707875438404,-2100.0115534,0.00035204,4]
[313965953,1707875438415,-300.0,0.00035204,4]
[313965954,1707875438425,-620.19525645,0.00035542,2]
[313965955,1707875438434,-500.0,0.00035616,2]
[313965956,1707875438444,-728.0,0.0003589,2]
[313965957,1707875438454,-17495.25662718,0.000359,2]
[313965958,1707875438464,-50000.0,0.00035918,7]
[313965959,1707875438474,-164.631336,0.00035918,2]
[313965960,1707875438485,-151.0,0.00035918,2]
[313965961,1707875438494,-151.0,0.00035918,2]
[313965962,1707875438504,-151.0,0.00035918,2]
[313965963,1707875438513,-151.0,0.00035918,2]
[313965964,1707875438523,-754.204049,0.00035918,2]
[313965965,1707875438533,-754.204049,0.00035918,2]
[313965966,1707875438542,-1579.61619898,0.0003598,14]
[313965967,1707875438553,-500.0,0.00035999,2]
[313965968,1707875438562,-500.0,0.00035999,2]
[313965969,1707875438571,-503.17239782,0.00035999,2]
[313965970,1707875438580,-200.0,0.00036,4]
[313965971,1707875438590,-728.0,0.00036,2]
[313965972,1707875438599,-728.0,0.00036164,2]
[313965973,1707875438609,-728.0,0.00036438,2]
[313965974,1707875438617,-300.0,0.00036464,3]
[313965975,1707875438626,-579.0,0.000365,2]
[313965976,1707875438636,-1276.71222907,0.00036601,2]
[313965977,1707875438645,-2463.42079929,0.00036612,2]
[313965978,1707875438654,-399.7167146,0.00036612,4]
[313965979,1707875438663,-151.0,0.00036612,2]
[313965980,1707875438673,-151.0,0.00036612,2]
[313965981,1707875438682,-151.0,0.00036612,2]
[313965982,1707875438691,-754.204049,0.00036612,2]
[313965983,1707875438700,-754.204049,0.00036612,2]
[313965984,1707875438709,-37216.17925675,0.00036612,3]
[313965985,1707875438718,-233.55493,0.000367,28]
[313965986,1707875438728,-2000.0,0.000367,2]
[313965987,1707875438737,-150.282962,0.000367,2]
[313965988,1707875438746,-213.2352172,0.00036708,4]
[313965989,1707875438756,-1205.864308,0.00036708,4]
[313965990,1707875438765,-878.50276618,0.00036708,2]
[313965991,1707875438774,-916.94407895,0.00036708,5]
[313965992,1707875438784,-11567.57171785,0.00036709,2]
[313965993,1707875438793,-294.52061754,0.0003671,4]
[313965994,1707875438803,-295.33453401,0.0003671,4]
[313965995,1707875438812,-1743.23099288,0.0003671,4]
[313965996,1707875438822,-155.37425387,0.0003671,4]
[313965997,1707875438831,-175.69575442,0.0003671,4]
[313965998,1707875438840,-1018.94351989,0.0003671,4]
[313965999,1707875438849,-539.7043787,0.0003671,4]
[313966000,1707875438858,-154.95351395,0.0003671,4]
[313966001,1707875438867,-821.2943482,0.0003671,4]
[313966002,1707875438876,-1200.60683922,0.0003671,4]
[313966003,1707875438885,-663.91686787,0.0003671,4]
[313966004,1707875438894,-240.63614429,0.0003671,4]
[313966005,1707875438903,-258.52891883,0.0003671,4]
[313966006,1707875438912,-323.95906858,0.0003671,4]
[313966007,1707875438922,-214.01715706,0.0003671,4]
[313966008,1707875438931,-179.97810264,0.0003671,4]
[313966009,1707875438940,-368.77175198,0.0003671,4]
[313966010,1707875438949,-309.39587263,0.0003671,4]
[313966011,1707875438958,-718.5549009,0.0003671,4]
[313966012,1707875438966,-202.30473257,0.0003671,4]
[313966013,1707875438975,-236.67047752,0.0003671,4]
[313966014,1707875438984,-690.38832205,0.0003671,4]
[313966015,1707875438993,-154.8915759,0.0003671,4]
[313966016,1707875439002,-156.23131004,0.0003671,4]
[313966017,1707875439011,-155.24468344,0.0003671,4]
[313966018,1707875439020,-208.9712375,0.0003671,4]
[313966019,1707875439028,-155.15960432,0.0003671,4]
[313966020,1707875439037,-155.76559903,0.0003671,4]
[313966021,1707875439046,-155.92519336,0.0003671,4]
[313966022,1707875439054,-1435.97012369,0.0003671,4]
[313966023,1707875439063,-178.05486055,0.0003671,4]
[313966024,1707875439072,-1433.23082844,0.0003671,4]
[313966025,1707875439081,-161.66447433,0.0003671,4]
[313966026,1707875439089,-621.85665138,0.0003671,4]
[313966027,1707875439098,-154.87609912,0.0003671,4]
[313966028,1707875439107,-263.64881695,0.0003671,4]
[313966029,1707875439119,-155.69340502,0.0003671,90]
[313966030,1707875439128,-156.6857997,0.0003671,4]
[313966031,1707875439137,-500.0,0.0003671,4]
[313966032,1707875439146,-175.85861633,0.0003671,4]
[313966033,1707875439154,-387.08379024,0.0003671,4]
[313966034,1707875439165,-815.43837953,0.0003671,4]
[313966035,1707875439174,-352.5798809,0.0003671,4]
[313966036,1707875439182,-938.85356463,0.0003671,4]
[313966037,1707875439191,-259.39187815,0.0003671,4]
[313966038,1707875439200,-485.67240352,0.0003671,4]
[313966039,1707875439211,-155.61835012,0.0003671,4]
[313966040,1707875439219,-154.98172034,0.0003671,4]
[313966041,1707875439228,-588.22463365,0.0003671,4]
[313966042,1707875439237,-155.46785369,0.0003671,4]
[313966043,1707875439247,-157.3710449,0.0003671,4]
[313966044,1707875439257,-347.87109529,0.0003671,4]
[313966045,1707875439267,-151.0,0.0003671,2]
[313966046,1707875439277,-151.0,0.0003671,2]
[313966047,1707875439286,-1142.89395819,0.0003671,4]
[313966048,1707875439295,-20992.47668318,0.0003671,4]
[313966049,1707875439305,-1882.76558556,0.0003671,4]
[313966050,1707875439314,-155.62959909,0.0003671,4]
[313966051,1707875439323,-303.57716858,0.00036711,4]
[313966052,1707875439332,-500.0,0.00036711,15]
[313966053,1707875439341,-500.0,0.00036711,15]
[313966054,1707875439350,-255.14238485,0.00036711,15]
[313966055,1707875439360,-500.0,0.00036711,15]
[313966056,1707875439369,-508.1459723,0.00036711,15]
[313966057,1707875439378,-489.04318087,0.00036711,15]
[313966058,1707875439387,-500.0,0.00036712,14]
[313966059,1707875439396,-501.56186876,0.00036712,14]
[313966060,1707875439405,-502.65293495,0.00036712,14]
[313966061,1707875439414,-501.70423678,0.00036712,7]
[313966062,1707875439424,-362.23767781,0.00036712,14]
[313966063,1707875439433,-500.0,0.00036712,7]
[313966064,1707875439442,-500.0,0.00036712,7]
[313966065,1707875439451,-501.69073897,0.00036712,7]
[313966066,1707875439460,-520.58279633,0.00036712,14]
[313966067,1707875439469,-503.07737209,0.00036712,14]
[313966068,1707875439478,-500.0,0.00036712,14]
[313966069,1707875439487,-504.00637081,0.00036712,14]
[313966070,1707875439496,-503.46833461,0.00036712,14]
[313966071,1707875439505,-500.0,0.00036712,14]
[313966072,1707875439514,-506.5491602,0.00036712,14]
[313966073,1707875439523,-151.0,0.00036712,2]
[313966074,1707875439531,-151.0,0.00036712,2]
[313966075,1707875439540,-151.0,0.00036712,2]
[313966076,1707875439549,-151.0,0.00036712,2]
[313966077,1707875439557,-151.0,0.00036712,2]
[313966078,1707875439566,-151.0,0.00036712,2]
[313966079,1707875439575,-151.0,0.00036712,2]
[313966080,1707875439583,-151.0,0.00036712,2]
[313966081,1707875439672,-151.0,0.00036712,2]
[313966082,1707875439681,-150.0,0.00036712,14]
[313966083,1707875439690,-151.15817821,0.00036712,14]
[313966084,1707875439698,-500.0,0.00036712,14]
[313966085,1707875439707,-505.52188752,0.00036712,14]
[313966086,1707875439716,-500.0,0.00036712,14]
[313966087,1707875439725,-500.0,0.00036712,14]
[313966088,1707875439734,-444.26855003,0.00036712,14]
[313966089,1707875439742,-500.0,0.00036712,14]
[313966090,1707875439751,-500.0,0.00036712,14]
[313966091,1707875439760,-500.0,0.00036712,14]
[313966092,1707875439768,-327.31232035,0.00036712,14]
[313966093,1707875439777,-500.0,0.00036712,14]
[313966094,1707875439786,-504.05910326,0.00036712,14]
[313966095,1707875439794,-500.0,0.00036712,14]
[313966096,1707875439803,-501.78498354,0.00036712,14]
[313966097,1707875439812,-500.0,0.00036712,14]
[313966098,1707875439821,-506.15372689,0.00036712,14]
[313966099,1707875439830,-500.0,0.00036712,14]
[313966100,1707875439840,-504.49324449,0.00036712,14]
[313966101,1707875439849,-500.0,0.00036712,14]
[313966103,1707875439858,-500.0,0.00036712,14]
[313966104,1707875439867,-514.72863791,0.00036712,14]
[313966106,1707875439876,-500.0,0.00036712,14]
[313966108,1707875439886,-500.0,0.00036712,14]
[313966109,1707875439896,-603.72609832,0.00036712,14]
[313966110,1707875439906,-157.6381019,0.00036712,14]
[313966111,1707875439916,-500.0,0.00036712,14]
[313966112,1707875439927,-500.0,0.00036712,14]
[313966113,1707875439938,-506.30132654,0.00036712,14]
[313966114,1707875439947,-500.0,0.00036712,14]
[313966115,1707875439958,-575.70274568,0.00036712,14]
[313966116,1707875439967,-500.0,0.00036712,14]
[313966117,1707875439977,-510.91502988,0.00036712,14]
[313966118,1707875439986,-500.0,0.00036712,14]
[313966119,1707875439995,-500.0,0.00036712,14]
[313966120,1707875440004,-500.0,0.00036712,14]
[313966121,1707875440013,-429.14537517,0.00036712,14]
[313966122,1707875440022,-503.03176503,0.00036712,2]
[313966123,1707875440031,-500.0,0.00036712,14]
[313966125,1707875440040,-507.10286213,0.00036712,14]
[313966127,1707875440048,-500.0,0.00036712,7]
[313966128,1707875440057,-502.2368537,0.00036712,7]
[313966129,1707875440066,-155.38151961,0.00036712,14]
[313966130,1707875440075,-500.0,0.00036712,14]
[313966131,1707875440083,-563.85977305,0.00036712,14]
[313966132,1707875440093,-500.0,0.00036712,14]
[313966133,1707875440102,-501.0090985,0.00036712,14]
[313966134,1707875440110,-500.0,0.00036712,14]
[313966135,1707875440120,-500.0,0.00036712,14]
[313966137,1707875440130,-500.0,0.00036712,14]
[313966139,1707875440141,-500.0,0.00036712,14]
[313966140,1707875440150,-194.32333064,0.00036712,14]
[313966142,1707875440159,-500.0,0.00036712,14]
[313966143,1707875440169,-500.0,0.00036712,14]
[313966144,1707875440178,-500.0,0.00036712,14]
[313966145,1707875440187,-213.09200985,0.00036712,14]
[313966146,1707875440195,-500.0,0.00036712,14]
[313966147,1707875440204,-500.0,0.00036712,14]
[313966148,1707875440214,-308.32473357,0.00036712,14]
[313966149,1707875440223,-500.0,0.00036712,14]
[313966150,1707875440232,-503.55845766,0.00036712,14]
[313966151,1707875440241,-500.0,0.00036712,14]
[313966152,1707875440250,-500.0,0.00036712,14]
[313966153,1707875440259,-500.0,0.00036712,14]
[313966154,1707875440268,-168.90751031,0.00036712,14]
[313966155,1707875440276,-500.0,0.00036712,14]
[313966156,1707875440286,-506.56674736,0.00036712,14]
[313966157,1707875440295,-500.0,0.00036712,7]
[313966158,1707875440304,-504.30659917,0.00036712,7]
[313966159,1707875440312,-500.0,0.00036712,14]
[313966160,1707875440321,-607.64668153,0.00036712,14]
[313966161,1707875440330,-501.95692671,0.00036712,14]
[313966162,1707875440339,-500.0,0.00036712,14]
[313966163,1707875440348,-502.55940086,0.00036712,14]
[313966164,1707875440356,-508.72415313,0.00036712,14]
[313966165,1707875440365,-520.13711877,0.00036712,14]
[313966166,1707875440374,-230.24070418,0.00036712,14]
[313966167,1707875440383,-501.53610587,0.00036712,14]
[313966168,1707875440393,-387.5139265,0.00036712,14]
[313966169,1707875440401,-608.3261985,0.00036712,14]
[313966170,1707875440410,-500.0,0.00036712,14]
[313966171,1707875440419,-500.0,0.00036712,14]